[Event "*** Biggest EVER Titled Tuesday"]
[Site "Chess.com"]
[Date "2018.04.17"]
[Round "1"]
[White "nubair1198"]
[Black "nailbeshirli"]
[Result "0-1"]
[WhiteElo "2542"]
[BlackElo "2255"]
[TimeControl "180+2"]
[EndTime "13:10:31 PDT"]
[Termination "nailbeshirli won by resignation"]

1. d3 {[%clk 0:03:01.9]} 1... c5 {[%clk 0:02:38.6]} 2. Nf3 {[%clk 0:03:03.6]}
2... Nc6 {[%clk 0:02:38.6]} 3. g3 {[%clk 0:03:04.4]} 3... g6 {[%clk 0:02:36.2]}
4. Bg2 {[%clk 0:03:06.3]} 4... Bg7 {[%clk 0:02:38.1]} 5. O-O {[%clk 0:03:07.8]}
5... d6 {[%clk 0:02:37.5]} 6. c4 {[%clk 0:03:07.2]} 6... Nf6 {[%clk 0:02:39.4]}
7. Nc3 {[%clk 0:03:07.4]} 7... O-O {[%clk 0:02:39.5]} 8. Rb1 {[%clk 0:03:09.3]}
8... Rb8 {[%clk 0:02:38.3]} 9. a3 {[%clk 0:03:10.8]} 9... a6 {[%clk 0:02:39.1]}
10. b4 {[%clk 0:03:12.3]} 10... cxb4 {[%clk 0:02:40.3]} 11. axb4 {[%clk
0:03:14.2]} 11... b5 {[%clk 0:02:41.8]} 12. cxb5 {[%clk 0:03:10.8]} 12... axb5
{[%clk 0:02:43.7]} 13. Bd2 {[%clk 0:03:12.1]} 13... Bd7 {[%clk 0:02:43.4]} 14.
h3 {[%clk 0:03:10.1]} 14... e6 {[%clk 0:02:44]} 15. Qb3 {[%clk 0:03:07.8]} 15...
Qe7 {[%clk 0:02:44.6]} 16. Ra1 {[%clk 0:03:07.9]} 16... Rfc8 {[%clk 0:02:44.4]}
17. Ra6 {[%clk 0:03:07.6]} 17... d5 {[%clk 0:02:44.7]} 18. Rb1 {[%clk
0:03:03.5]} 18... Ne8 {[%clk 0:02:44.1]} 19. Bg5 {[%clk 0:02:59.8]} 19... Qxb4
{[%clk 0:02:08.6]} 20. Bd2 {[%clk 0:02:47.1]} 20... Qxb3 {[%clk 0:01:28.2]} 21.
Rxb3 {[%clk 0:02:49]} 21... b4 {[%clk 0:01:29.2]} 22. Na2 {[%clk 0:02:47.7]}
22... Nc7 {[%clk 0:01:24.5]} 23. Rxc6 {[%clk 0:02:05.6]} 23... Bxc6 {[%clk
0:01:21.2]} 24. Nxb4 {[%clk 0:02:07.5]} 24... Ba4 {[%clk 0:01:19.7]} 25. Ra3
{[%clk 0:02:08.2]} 25... Be8 {[%clk 0:01:12.3]} 26. Ra7 {[%clk 0:01:49.2]} 26...
Nb5 {[%clk 0:01:10.6]} 27. Ra5 {[%clk 0:01:49.4]} 27... Nc3 {[%clk 0:01:10.3]}
28. Na6 {[%clk 0:01:43.1]} 28... Rb2 {[%clk 0:01:05.6]} 29. e3 {[%clk
0:01:36.7]} 29... Nb1 {[%clk 0:00:59.3]} 30. Be1 {[%clk 0:01:32.6]} 30... Ra8
{[%clk 0:00:54.5]} 31. d4 {[%clk 0:01:25.8]} 31... Rb5 {[%clk 0:00:48]} 32. Rxb5
{[%clk 0:01:00.7]} 32... Bxb5 {[%clk 0:00:49.9]} 33. Nc7 {[%clk 0:01:01.5]}
33... Rb8 {[%clk 0:00:50.8]} 34. Ne5 {[%clk 0:01:01.7]} 34... Bxe5 {[%clk
0:00:46.9]} 35. dxe5 {[%clk 0:01:03.6]} 35... Bd3 {[%clk 0:00:48.3]} 36. f4
{[%clk 0:00:59.6]} 36... Rc8 {[%clk 0:00:47.5]} 37. Ba5 {[%clk 0:01:00.4]} 37...
Na3 {[%clk 0:00:43.4]} 38. Bb4 {[%clk 0:00:45.7]} 38... Nc4 {[%clk 0:00:40.3]}
39. Bd6 {[%clk 0:00:47.1]} 39... Nxe3 {[%clk 0:00:38.6]} 40. Kf2 {[%clk
0:00:40.9]} 40... Nc4 {[%clk 0:00:38.2]} 41. Nb5 {[%clk 0:00:38.8]} 41... Nxe5
{[%clk 0:00:33]} 42. Bxe5 {[%clk 0:00:33.2]} 42... Bxb5 {[%clk 0:00:33.9]} 43.
g4 {[%clk 0:00:34.7]} 43... Rc2+ {[%clk 0:00:33.5]} 44. Kg3 {[%clk 0:00:35.5]}
44... Bd3 {[%clk 0:00:35]} 45. Bf3 {[%clk 0:00:35.8]} 45... Be4 {[%clk
0:00:35.1]} 46. Bd1 {[%clk 0:00:35.3]} 46... Rd2 {[%clk 0:00:34.5]} 47. Ba4
{[%clk 0:00:35.8]} 47... h6 {[%clk 0:00:36]} 48. h4 {[%clk 0:00:33.4]} 48...
Rd3+ {[%clk 0:00:36]} 49. Kf2 {[%clk 0:00:34.1]} 49... Rf3+ {[%clk 0:00:35.7]}
50. Ke2 {[%clk 0:00:34.6]} 50... Ra3 {[%clk 0:00:36.8]} 51. Be8 {[%clk
0:00:24.8]} 51... Bf3+ {[%clk 0:00:35.2]} 52. Kd2 {[%clk 0:00:26.4]} 52... Bxg4
{[%clk 0:00:37.1]} 53. Bb5 {[%clk 0:00:26.2]} 53... Bf5 {[%clk 0:00:37.1]} 54.
Be2 {[%clk 0:00:26.8]} 54... Rh3 {[%clk 0:00:37.6]} 55. Bf6 {[%clk 0:00:27.3]}
55... Ra3 {[%clk 0:00:37.1]} 56. Be7 {[%clk 0:00:28.1]} 56... Ra2+ {[%clk
0:00:37.5]} 57. Ke3 {[%clk 0:00:29.1]} 57... d4+ {[%clk 0:00:36.6]} 58. Kf3
{[%clk 0:00:30.5]} 58... Bg4+ {[%clk 0:00:34.1]} 59. Kxg4 {[%clk 0:00:32]} 59...
Rxe2 {[%clk 0:00:36]} 60. Kf3 {[%clk 0:00:33.5]} 60... d3 {[%clk 0:00:36.3]} 61.
Bb4 {[%clk 0:00:35.2]} 61... f5 {[%clk 0:00:36.7]} 62. Bc3 {[%clk 0:00:35.6]}
62... Kf7 {[%clk 0:00:37.5]} 63. Bd4 {[%clk 0:00:31.6]} 63... Re4 {[%clk
0:00:36.9]} 64. Be3 {[%clk 0:00:32.4]} 64... g5 {[%clk 0:00:34.6]} 65. hxg5
{[%clk 0:00:32.9]} 65... hxg5 {[%clk 0:00:36.5]} 66. fxg5 {[%clk 0:00:34.7]}
66... Kg6 {[%clk 0:00:37.4]} 67. Bd2 {[%clk 0:00:35.4]} 67... e5 {[%clk
0:00:38.6]} 68. Bc1 {[%clk 0:00:34.2]} 68... Re2 {[%clk 0:00:38.6]} 69. Ba3
{[%clk 0:00:33.3]} 69... e4+ {[%clk 0:00:39.1]} 70. Kf4 {[%clk 0:00:33.9]} 70...
d2 {[%clk 0:00:41]} 0-1

[Event "*** Biggest EVER Titled Tuesday"]
[Site "Chess.com"]
[Date "2018.04.17"]
[Round "1"]
[White "Wraku89"]
[Black "TBergh98"]
[Result "1-0"]
[WhiteElo "2565"]
[BlackElo "2225"]
[TimeControl "180+2"]
[EndTime "13:11:02 PDT"]
[Termination "Wraku89 won by resignation"]

1. e4 {[%clk 0:03:00]} 1... e5 {[%clk 0:03:00.2]} 2. Nf3 {[%clk 0:03:00.5]} 2...
Nc6 {[%clk 0:03:00.1]} 3. Nc3 {[%clk 0:02:59.7]} 3... Nf6 {[%clk 0:02:59.8]} 4.
a3 {[%clk 0:03:00.4]} 4... a5 {[%clk 0:02:58.6]} 5. d4 {[%clk 0:02:59.2]} 5...
exd4 {[%clk 0:02:55.9]} 6. Nxd4 {[%clk 0:03:01.1]} 6... Bc5 {[%clk 0:02:53.5]}
7. Be3 {[%clk 0:03:01.2]} 7... Nxd4 {[%clk 0:02:48.7]} 8. Bxd4 {[%clk
0:03:03.1]} 8... Bxd4 {[%clk 0:02:49.8]} 9. Qxd4 {[%clk 0:03:05]} 9... d6 {[%clk
0:02:50.9]} 10. Bc4 {[%clk 0:02:51.3]} 10... Qe7 {[%clk 0:02:51.5]} 11. O-O
{[%clk 0:02:51.2]} 11... O-O {[%clk 0:02:52]} 12. f4 {[%clk 0:02:45.7]} 12...
Be6 {[%clk 0:02:35.4]} 13. Rae1 {[%clk 0:02:45.7]} 13... Nd7 {[%clk 0:02:29]}
14. Nd5 {[%clk 0:02:30.3]} 14... Bxd5 {[%clk 0:02:18.5]} 15. Bxd5 {[%clk
0:02:27.4]} 15... c6 {[%clk 0:02:14.9]} 16. Ba2 {[%clk 0:02:28.4]} 16... Rae8
{[%clk 0:01:32.4]} 17. Re3 {[%clk 0:01:58.3]} 17... Qf6 {[%clk 0:00:58.2]} 18.
e5 {[%clk 0:01:35.9]} 18... Qe7 {[%clk 0:00:55.8]} 19. Rd1 {[%clk 0:01:22.3]}
19... d5 {[%clk 0:00:49.3]} 20. c4 {[%clk 0:01:23.2]} 20... Nf6 {[%clk
0:00:27.8]} 21. Rdd3 {[%clk 0:00:59.4]} 21... Ng4 {[%clk 0:00:21.2]} 22. Rg3
{[%clk 0:00:30.1]} 22... Qh4 {[%clk 0:00:21.2]} 23. h3 {[%clk 0:00:28.8]} 23...
Nh6 {[%clk 0:00:21.7]} 24. Qf2 {[%clk 0:00:28]} 24... Kh8 {[%clk 0:00:21.5]} 25.
cxd5 {[%clk 0:00:28.3]} 25... cxd5 {[%clk 0:00:21.5]} 26. Bxd5 {[%clk
0:00:29.4]} 26... Nf5 {[%clk 0:00:22.4]} 27. Rg5 {[%clk 0:00:27.4]} 27... Qxf2+
{[%clk 0:00:17.4]} 28. Kxf2 {[%clk 0:00:29.3]} 28... g6 {[%clk 0:00:18.6]} 29.
Bxb7 {[%clk 0:00:21.3]} 29... Rb8 {[%clk 0:00:19.5]} 30. Rd7 {[%clk 0:00:21.9]}
30... Rfd8 {[%clk 0:00:20]} 31. Rxd8+ {[%clk 0:00:20]} 31... Rxd8 {[%clk
0:00:21.9]} 32. Be4 {[%clk 0:00:19]} 32... Ne7 {[%clk 0:00:18.5]} 33. Ke3 {[%clk
0:00:16.2]} 33... Rb8 {[%clk 0:00:18.8]} 34. f5 {[%clk 0:00:10.9]} 34... gxf5
{[%clk 0:00:18.2]} 35. Bxf5 {[%clk 0:00:12.8]} 35... Rxb2 {[%clk 0:00:19.5]} 36.
Be4 {[%clk 0:00:09.9]} 36... Rb3+ {[%clk 0:00:20.5]} 37. Kd4 {[%clk 0:00:10.9]}
37... Rxa3 {[%clk 0:00:21.4]} 38. Rg4 {[%clk 0:00:12.2]} 38... Ra4+ {[%clk
0:00:22.5]} 39. Kc5 {[%clk 0:00:13]} 39... Ra1 {[%clk 0:00:22.3]} 40. Rf4 {[%clk
0:00:10.6]} 40... Kg7 {[%clk 0:00:22.8]} 41. Bc2 {[%clk 0:00:08.5]} 41... Rc1
{[%clk 0:00:23.3]} 42. Rc4 {[%clk 0:00:09.6]} 42... Ng6 {[%clk 0:00:23.4]} 43.
Kb5 {[%clk 0:00:06.3]} 43... a4 {[%clk 0:00:22.6]} 44. Kxa4 {[%clk 0:00:06.9]}
44... Nxe5 {[%clk 0:00:23.8]} 45. Rc7 {[%clk 0:00:07.7]} 45... Ra1+ {[%clk
0:00:24.2]} 46. Kb3 {[%clk 0:00:08.7]} 46... Rg1 {[%clk 0:00:26.1]} 47. Be4
{[%clk 0:00:09.6]} 47... Ng6 {[%clk 0:00:27.3]} 48. Kc2 {[%clk 0:00:06]} 48...
Rf1 {[%clk 0:00:28.1]} 49. Kd3 {[%clk 0:00:06.4]} 49... Rd1+ {[%clk 0:00:27.9]}
50. Ke2 {[%clk 0:00:07.3]} 50... Rd6 {[%clk 0:00:28.9]} 51. Ke3 {[%clk 0:00:08]}
51... Re6 {[%clk 0:00:30.1]} 52. Kd4 {[%clk 0:00:07.7]} 52... Rd6+ {[%clk
0:00:29.2]} 53. Bd5 {[%clk 0:00:06.9]} 53... Rf6 {[%clk 0:00:30.4]} 54. g3
{[%clk 0:00:05.9]} 54... h6 {[%clk 0:00:30.5]} 55. h4 {[%clk 0:00:06.9]} 55...
h5 {[%clk 0:00:31.3]} 56. Ra7 {[%clk 0:00:06.2]} 56... Rf1 {[%clk 0:00:30]} 57.
Ke3 {[%clk 0:00:06.4]} 57... Ne5 {[%clk 0:00:29.4]} 58. Ra5 {[%clk 0:00:04.1]}
58... Ng4+ {[%clk 0:00:29.5]} 59. Ke2 {[%clk 0:00:04.3]} 59... Rf2+ {[%clk
0:00:29.9]} 60. Kd3 {[%clk 0:00:05.6]} 60... Rf5 {[%clk 0:00:30.2]} 61. Rb5
{[%clk 0:00:05]} 61... Rf1 {[%clk 0:00:29.2]} 62. Ke2 {[%clk 0:00:05.5]} 62...
Rf5 {[%clk 0:00:30]} 63. Bc4 {[%clk 0:00:05]} 63... Rxb5 {[%clk 0:00:30.6]} 64.
Bxb5 {[%clk 0:00:06.9]} 64... Kf6 {[%clk 0:00:31.5]} 65. Kf3 {[%clk 0:00:07.9]}
65... Kf5 {[%clk 0:00:32.1]} 66. Bd7+ {[%clk 0:00:08.7]} 66... Kg6 {[%clk
0:00:33.4]} 67. Bxg4 {[%clk 0:00:10.6]} 67... hxg4+ {[%clk 0:00:34.7]} 68. Kxg4
{[%clk 0:00:12.5]} 68... Kh6 {[%clk 0:00:36.1]} 69. Kf5 {[%clk 0:00:13.8]} 69...
Kg7 {[%clk 0:00:37.5]} 70. Kg5 {[%clk 0:00:15]} 70... Kg8 {[%clk 0:00:35.9]} 71.
Kf6 {[%clk 0:00:16.2]} 71... Kf8 {[%clk 0:00:37.1]} 72. h5 {[%clk 0:00:17.4]}
72... Kg8 {[%clk 0:00:38.6]} 73. h6 {[%clk 0:00:17.1]} 73... Kh7 {[%clk
0:00:39.9]} 74. Kxf7 {[%clk 0:00:18.4]} 74... Kxh6 {[%clk 0:00:41.2]} 75. Kf6
{[%clk 0:00:20]} 75... Kh5 {[%clk 0:00:42.4]} 76. Kf5 {[%clk 0:00:21.4]} 76...
Kh6 {[%clk 0:00:43.9]} 77. g4 {[%clk 0:00:22.2]} 77... Kh7 {[%clk 0:00:45.3]}
78. Kf6 {[%clk 0:00:23.5]} 78... Kh6 {[%clk 0:00:46.6]} 79. g5+ {[%clk
0:00:24.4]} 79... Kh7 {[%clk 0:00:48.5]} 80. Kf7 {[%clk 0:00:25.7]} 80... Kh8
{[%clk 0:00:49.1]} 81. Kg6 {[%clk 0:00:27.6]} 81... Kg8 {[%clk 0:00:50.4]} 82.
Kh6 {[%clk 0:00:28.1]} 82... Kh8 {[%clk 0:00:51.9]} 83. g6 {[%clk 0:00:29.3]}
83... Kg8 {[%clk 0:00:53.8]} 84. g7 {[%clk 0:00:30.8]} 84... Kf7 {[%clk
0:00:54.8]} 85. Kh7 {[%clk 0:00:32.7]} 1-0

[Event "*** Biggest EVER Titled Tuesday"]
[Site "Chess.com"]
[Date "2018.04.17"]
[Round "1"]
[White "cheese111"]
[Black "gkchesstiger"]
[Result "0-1"]
[WhiteElo "2411"]
[BlackElo "2802"]
[TimeControl "180+2"]
[EndTime "13:11:15 PDT"]
[Termination "gkchesstiger won by resignation"]

1. e4 {[%clk 0:03:01.5]} 1... c5 {[%clk 0:02:58.4]} 2. Nf3 {[%clk 0:03:02.2]}
2... e6 {[%clk 0:02:59.2]} 3. g3 {[%clk 0:03:02.4]} 3... d5 {[%clk 0:02:57.3]}
4. exd5 {[%clk 0:03:03.2]} 4... exd5 {[%clk 0:02:58.5]} 5. d4 {[%clk 0:03:04.8]}
5... Nc6 {[%clk 0:02:54.1]} 6. Bg2 {[%clk 0:03:06]} 6... cxd4 {[%clk 0:02:47.1]}
7. O-O {[%clk 0:03:04]} 7... Bc5 {[%clk 0:02:47.7]} 8. Nbd2 {[%clk 0:02:32.9]}
8... Bb6 {[%clk 0:02:45.3]} 9. Nb3 {[%clk 0:02:32.6]} 9... Bg4 {[%clk
0:02:45.3]} 10. Qe1+ {[%clk 0:01:33]} 10... Nge7 {[%clk 0:02:42.9]} 11. Bf4
{[%clk 0:01:33.3]} 11... O-O {[%clk 0:02:42.1]} 12. Ne5 {[%clk 0:01:34.3]} 12...
Nxe5 {[%clk 0:02:39.7]} 13. Bxe5 {[%clk 0:01:35.3]} 13... Nc6 {[%clk 0:02:38.7]}
14. Bf4 {[%clk 0:01:36.5]} 14... Re8 {[%clk 0:02:39.1]} 15. Qd2 {[%clk
0:01:37.1]} 15... Re2 {[%clk 0:02:36.8]} 16. Qd1 {[%clk 0:01:02.7]} 16... d3
{[%clk 0:02:37.2]} 17. Qxd3 {[%clk 0:01:02.3]} 17... Nb4 {[%clk 0:02:37.5]} 18.
Qc3 {[%clk 0:00:59.6]} 18... Nxc2 {[%clk 0:02:28]} 19. Rac1 {[%clk 0:00:51.8]}
19... Rc8 {[%clk 0:02:26.9]} 20. Qd3 {[%clk 0:00:48.9]} 20... Nb4 {[%clk
0:02:21.8]} 21. Qb5 {[%clk 0:00:29]} 21... Rxc1 {[%clk 0:02:20.2]} 22. Nxc1
{[%clk 0:00:24.4]} 22... Rxb2 {[%clk 0:02:20.2]} 23. a3 {[%clk 0:00:17.1]} 23...
a6 {[%clk 0:02:21]} 24. Qa4 {[%clk 0:00:11.6]} 24... Nc6 {[%clk 0:02:15.7]} 25.
Nd3 {[%clk 0:00:10.5]} 25... Rb5 {[%clk 0:02:08.5]} 26. Bc7 {[%clk 0:00:10]}
26... Qxc7 {[%clk 0:01:56.6]} 27. Qxg4 {[%clk 0:00:11.5]} 27... g6 {[%clk
0:01:55]} 28. Nf4 {[%clk 0:00:12.1]} 28... Ne5 {[%clk 0:01:51.8]} 29. Qe2 {[%clk
0:00:12.6]} 29... Qd6 {[%clk 0:01:45.3]} 30. Rd1 {[%clk 0:00:12.8]} 30... d4
{[%clk 0:01:37.6]} 31. Bxb7 {[%clk 0:00:14.2]} 31... Ba7 {[%clk 0:01:21.6]} 32.
Bg2 {[%clk 0:00:09.6]} 32... Qxa3 {[%clk 0:01:17.4]} 33. Re1 {[%clk 0:00:08.4]}
33... d3 {[%clk 0:01:16.5]} 34. Qe4 {[%clk 0:00:05.2]} 34... Qc5 {[%clk
0:01:10.2]} 35. Rf1 {[%clk 0:00:04.9]} 35... d2 {[%clk 0:01:06.7]} 36. Nd3
{[%clk 0:00:03]} 36... Nxd3 {[%clk 0:00:56.7]} 37. Qxd3 {[%clk 0:00:04.9]} 37...
Rb2 {[%clk 0:00:56]} 38. h4 {[%clk 0:00:03.2]} 38... Qd4 {[%clk 0:00:51.4]} 39.
Qxd4 {[%clk 0:00:02.6]} 39... Bxd4 {[%clk 0:00:51.8]} 40. Bf3 {[%clk 0:00:04.5]}
40... a5 {[%clk 0:00:51.5]} 41. Kg2 {[%clk 0:00:05.7]} 41... a4 {[%clk
0:00:52.4]} 42. Ra1 {[%clk 0:00:06.6]} 42... d1=Q {[%clk 0:00:38.4]} 43. Rxd1
{[%clk 0:00:07.7]} 43... Rxf2+ {[%clk 0:00:39.1]} 44. Kh3 {[%clk 0:00:09.4]}
44... Be5 {[%clk 0:00:37.8]} 45. Rd3 {[%clk 0:00:07.2]} 45... h5 {[%clk
0:00:35.6]} 46. Bc6 {[%clk 0:00:04]} 46... Ra2 {[%clk 0:00:30.7]} 47. Rf3 {[%clk
0:00:04.9]} 47... a3 {[%clk 0:00:27.5]} 48. Bd5 {[%clk 0:00:05]} 48... Rd2
{[%clk 0:00:28.7]} 49. Bxf7+ {[%clk 0:00:05.9]} 49... Kg7 {[%clk 0:00:30]} 50.
Bb3 {[%clk 0:00:05.2]} 50... a2 {[%clk 0:00:30.8]} 51. Bxa2 {[%clk 0:00:06.5]}
51... Rxa2 {[%clk 0:00:31.2]} 52. Re3 {[%clk 0:00:08.4]} 52... Kf6 {[%clk
0:00:31.5]} 53. Rf3+ {[%clk 0:00:09.8]} 53... Ke6 {[%clk 0:00:32.7]} 54. Re3
{[%clk 0:00:11.2]} 54... Rc2 {[%clk 0:00:33.5]} 55. Rf3 {[%clk 0:00:12.1]} 55...
Bd4 {[%clk 0:00:33.1]} 56. Rd3 {[%clk 0:00:13]} 56... Bg1 {[%clk 0:00:33.8]} 57.
g4 {[%clk 0:00:13.3]} 57... Bc5 {[%clk 0:00:34.6]} 58. Rf3 {[%clk 0:00:13.1]}
58... Bd6 {[%clk 0:00:35.3]} 59. Re3+ {[%clk 0:00:14]} 59... Kd7 {[%clk
0:00:35.8]} 60. gxh5 {[%clk 0:00:15.3]} 60... gxh5 {[%clk 0:00:36.7]} 61. Re2
{[%clk 0:00:12.7]} 61... Rc3+ {[%clk 0:00:34.9]} 62. Kg2 {[%clk 0:00:12.5]}
62... Rc4 {[%clk 0:00:35.9]} 63. Kh3 {[%clk 0:00:12.8]} 63... Be7 {[%clk
0:00:36.9]} 64. Rd2+ {[%clk 0:00:11.6]} 64... Ke6 {[%clk 0:00:36.8]} 65. Re2+
{[%clk 0:00:12.4]} 65... Kf7 {[%clk 0:00:38]} 66. Rf2+ {[%clk 0:00:13.5]} 66...
Bf6 {[%clk 0:00:38.4]} 67. Kg3 {[%clk 0:00:13]} 67... Rg4+ {[%clk 0:00:38.9]}
68. Kh3 {[%clk 0:00:13.4]} 68... Rxh4+ {[%clk 0:00:39.7]} 69. Kg3 {[%clk
0:00:15]} 69... Rg4+ {[%clk 0:00:40]} 70. Kh3 {[%clk 0:00:16.6]} 70... Kg6
{[%clk 0:00:41.3]} 71. Rg2 {[%clk 0:00:15.2]} 71... Kg5 {[%clk 0:00:42]} 72. Rf2
{[%clk 0:00:15.6]} 72... Bd4 {[%clk 0:00:33.9]} 73. Rf3 {[%clk 0:00:13.9]} 73...
Kg6 {[%clk 0:00:32.5]} 74. Rg3 {[%clk 0:00:13.4]} 74... Kg5 {[%clk 0:00:33.6]}
75. Rf3 {[%clk 0:00:14.5]} 75... Re4 {[%clk 0:00:32.3]} 76. Rf1 {[%clk 0:00:13]}
76... Re3+ {[%clk 0:00:32.5]} 77. Kh2 {[%clk 0:00:14.5]} 77... Be5+ {[%clk
0:00:33.8]} 78. Kg2 {[%clk 0:00:14.8]} 78... Kg4 {[%clk 0:00:34.4]} 79. Kh1
{[%clk 0:00:13.9]} 79... Bg3 {[%clk 0:00:34.7]} 80. Rg1 {[%clk 0:00:13.3]} 80...
Kf3 {[%clk 0:00:34.9]} 81. Rf1+ {[%clk 0:00:13.6]} 81... Bf2 {[%clk 0:00:36.2]}
82. Kh2 {[%clk 0:00:14.7]} 82... Re4 {[%clk 0:00:37]} 0-1

[Event "*** Biggest EVER Titled Tuesday"]
[Site "Chess.com"]
[Date "2018.04.17"]
[Round "1"]
[White "Anar_Aliakbarov"]
[Black "schoolmeester"]
[Result "1-0"]
[WhiteElo "2388"]
[BlackElo "2666"]
[TimeControl "180+2"]
[EndTime "13:11:32 PDT"]
[Termination "Anar_Aliakbarov won by resignation"]

1. d4 {[%clk 0:03:01.9]} 1... Nf6 {[%clk 0:02:59.7]} 2. c4 {[%clk 0:02:59.9]}
2... g6 {[%clk 0:02:58.9]} 3. Nc3 {[%clk 0:02:49.5]} 3... Bg7 {[%clk 0:02:59.3]}
4. e4 {[%clk 0:02:50.7]} 4... d6 {[%clk 0:02:59.8]} 5. Nf3 {[%clk 0:02:52.1]}
5... O-O {[%clk 0:03:00.4]} 6. Be2 {[%clk 0:02:53.3]} 6... Nbd7 {[%clk
0:02:59.4]} 7. O-O {[%clk 0:02:53.4]} 7... e5 {[%clk 0:03:00.3]} 8. Qc2 {[%clk
0:02:46.4]} 8... exd4 {[%clk 0:02:44.4]} 9. Nxd4 {[%clk 0:02:46.8]} 9... a6
{[%clk 0:02:44.2]} 10. Rd1 {[%clk 0:02:38.2]} 10... Rb8 {[%clk 0:02:43.1]} 11.
Bg5 {[%clk 0:02:37.1]} 11... Re8 {[%clk 0:02:39.5]} 12. Bf1 {[%clk 0:02:27.4]}
12... h6 {[%clk 0:02:38]} 13. Bh4 {[%clk 0:02:28.2]} 13... g5 {[%clk 0:02:02.9]}
14. Bg3 {[%clk 0:02:28.5]} 14... Ne5 {[%clk 0:01:59.9]} 15. Nd5 {[%clk
0:02:19.6]} 15... Nh5 {[%clk 0:01:52.7]} 16. Nf5 {[%clk 0:02:07.7]} 16... Bxf5
{[%clk 0:01:52]} 17. exf5 {[%clk 0:02:09.6]} 17... Nxg3 {[%clk 0:01:52.1]} 18.
hxg3 {[%clk 0:02:10.4]} 18... c6 {[%clk 0:01:53]} 19. Ne3 {[%clk 0:02:08.5]}
19... Qc7 {[%clk 0:01:51.5]} 20. Rd2 {[%clk 0:02:08.3]} 20... Rbd8 {[%clk
0:01:48.9]} 21. Rad1 {[%clk 0:02:09.5]} 21... h5 {[%clk 0:01:48.5]} 22. Be2
{[%clk 0:01:36.7]} 22... g4 {[%clk 0:01:47.3]} 23. f6 {[%clk 0:01:33.6]} 23...
Bxf6 {[%clk 0:01:45.7]} 24. Qf5 {[%clk 0:01:35]} 24... Kg7 {[%clk 0:01:40.9]}
25. Qxh5 {[%clk 0:01:34.9]} 25... Rh8 {[%clk 0:01:39.6]} 26. Qf5 {[%clk
0:01:30.3]} 26... Rh6 {[%clk 0:01:20.8]} 27. Nxg4 {[%clk 0:01:26.2]} 27... Nxg4
{[%clk 0:01:21.5]} 28. Bxg4 {[%clk 0:01:26.3]} 28... Rdh8 {[%clk 0:01:19.7]} 29.
Bh3 {[%clk 0:01:27.2]} 29... Be5 {[%clk 0:01:20.7]} 30. c5 {[%clk 0:01:25.2]}
30... Rf6 {[%clk 0:01:13]} 31. cxd6 {[%clk 0:01:14.6]} 31... Bxd6 {[%clk
0:01:09.2]} 32. Qg4+ {[%clk 0:01:05.9]} 32... Rg6 {[%clk 0:01:09.1]} 33. Qf3
{[%clk 0:01:03.5]} 33... Rf6 {[%clk 0:01:03.5]} 34. Qc3 {[%clk 0:01:02.4]} 34...
Be5 {[%clk 0:00:52.5]} 35. Qc4 {[%clk 0:00:54.6]} 35... Qb6 {[%clk 0:00:48.2]}
36. Qg4+ {[%clk 0:00:48.6]} 36... Rg6 {[%clk 0:00:46.2]} 37. Qf5 {[%clk
0:00:39.9]} 37... Bxg3 {[%clk 0:00:37.5]} 38. Rd7 {[%clk 0:00:40.9]} 38... Rf8
{[%clk 0:00:36.9]} 39. R1d4 {[%clk 0:00:32.6]} 39... Bb8 {[%clk 0:00:20.1]} 40.
Rg4 {[%clk 0:00:29.8]} 40... c5 {[%clk 0:00:21.2]} 41. Rxg6+ {[%clk 0:00:28.7]}
41... Qxg6 {[%clk 0:00:23.1]} 42. Rxb7 {[%clk 0:00:26.3]} 42... Qxf5 {[%clk
0:00:22.4]} 43. Bxf5 {[%clk 0:00:28.2]} 43... Be5 {[%clk 0:00:23.9]} 44. b3
{[%clk 0:00:28]} 44... Bd4 {[%clk 0:00:24.6]} 45. Bd3 {[%clk 0:00:27.2]} 45...
a5 {[%clk 0:00:23.2]} 46. Bc4 {[%clk 0:00:28.7]} 46... Kg6 {[%clk 0:00:23.3]}
47. g3 {[%clk 0:00:27.2]} 47... f5 {[%clk 0:00:22.7]} 48. Kg2 {[%clk 0:00:28.1]}
48... f4 {[%clk 0:00:24.1]} 49. gxf4 {[%clk 0:00:21.5]} 49... Rxf4 {[%clk
0:00:26]} 50. f3 {[%clk 0:00:23.1]} 50... Rf6 {[%clk 0:00:24.6]} 51. Bd3+ {[%clk
0:00:23.8]} 51... Kh6 {[%clk 0:00:25.6]} 52. Rh7+ {[%clk 0:00:23.5]} 52... Kg5
{[%clk 0:00:26.8]} 53. Be4 {[%clk 0:00:16]} 53... Kf4 {[%clk 0:00:26.2]} 54. Kf1
{[%clk 0:00:14.7]} 54... Ke3 {[%clk 0:00:26.8]} 55. Rh2 {[%clk 0:00:14.8]} 55...
Bc3 {[%clk 0:00:26]} 56. Re2+ {[%clk 0:00:16.1]} 56... Kd4 {[%clk 0:00:27.2]}
57. Kg2 {[%clk 0:00:16.7]} 57... Rf8 {[%clk 0:00:25.4]} 58. Kg3 {[%clk
0:00:17.4]} 58... a4 {[%clk 0:00:23.9]} 59. f4 {[%clk 0:00:15.7]} 59... a3
{[%clk 0:00:21.3]} 60. f5 {[%clk 0:00:15.9]} 60... Ke5 {[%clk 0:00:22.5]} 61.
Kf3 {[%clk 0:00:16]} 61... Kf6 {[%clk 0:00:20.8]} 62. Bc2 {[%clk 0:00:15.4]}
62... Rh8 {[%clk 0:00:22.2]} 63. Re6+ {[%clk 0:00:16.4]} 63... Kf7 {[%clk
0:00:23.5]} 64. Kg3 {[%clk 0:00:15.3]} 64... Rh1 {[%clk 0:00:22.7]} 65. Re2
{[%clk 0:00:14.7]} 65... Rg1+ {[%clk 0:00:22.2]} 66. Kf3 {[%clk 0:00:15.1]}
66... Rf1+ {[%clk 0:00:22.5]} 67. Ke4 {[%clk 0:00:16.3]} 67... Bb4 {[%clk
0:00:20.5]} 68. Bd3 {[%clk 0:00:15.9]} 68... Rd1 {[%clk 0:00:21]} 69. Rg2 {[%clk
0:00:07.2]} 69... Re1+ {[%clk 0:00:20.4]} 70. Kd5 {[%clk 0:00:07.9]} 70... Rd1
{[%clk 0:00:21.6]} 71. Kc4 {[%clk 0:00:08.4]} 71... Rc1+ {[%clk 0:00:20.3]} 72.
Kb5 {[%clk 0:00:09.6]} 72... Re1 {[%clk 0:00:21.3]} 73. Rg6 {[%clk 0:00:09.4]}
73... Bc3 {[%clk 0:00:17.3]} 74. Bc4+ {[%clk 0:00:10.3]} 74... Ke7 {[%clk
0:00:18.6]} 75. Re6+ {[%clk 0:00:11.3]} 75... Rxe6 {[%clk 0:00:19]} 76. fxe6
{[%clk 0:00:13.2]} 76... Bb4 {[%clk 0:00:20.4]} 77. Kc6 {[%clk 0:00:14.2]} 77...
Bc3 {[%clk 0:00:18.2]} 78. Kxc5 {[%clk 0:00:15.5]} 78... Be5 {[%clk 0:00:19.7]}
79. b4 {[%clk 0:00:16.8]} 79... Kd8 {[%clk 0:00:20.9]} 80. b5 {[%clk 0:00:17.8]}
80... Kc7 {[%clk 0:00:20.3]} 81. b6+ {[%clk 0:00:19]} 81... Kd8 {[%clk
0:00:21.6]} 82. Kc6 {[%clk 0:00:20]} 82... Bf4 {[%clk 0:00:22.4]} 83. Kb7 {[%clk
0:00:21.1]} 83... Be5 {[%clk 0:00:23]} 84. Ka8 {[%clk 0:00:22.1]} 1-0